fUST/lending_fUST_20240902
["ID","MTS","AMOUNT","RATE_DAILY","PERIOD"]
[336956573,1725263453353,-500.0,0.00025753,2]
[336956574,1725263453365,-787.87,0.00025753,2]
[336956575,1725263453379,-500.0,0.00025753,2]
[336956576,1725263453391,-500.0,0.00025753,2]
[336956577,1725263453400,-597.29,0.00025753,2]
[336956578,1725263453410,-500.0,0.00025753,2]
[336956579,1725263453420,-743.39,0.00025753,2]
[336956580,1725263453429,-589.44,0.00025753,2]
[336956581,1725263453438,-572.38,0.00025753,2]
[336956582,1725263453450,-500.0,0.00025753,2]
[336956583,1725263453460,-3733.93,0.00025753,2]
[336956584,1725263453470,-500.0,0.00025753,2]
[336956585,1725263453480,-500.0,0.00025753,2]
[336956586,1725263453489,-772.45,0.00025753,2]
[336956587,1725263453499,-500.0,0.00025753,2]
[336956588,1725263453509,-500.0,0.00025753,2]
[336956589,1725263453518,-724.25,0.00025753,2]
[336956590,1725263453528,-971.88,0.00025753,2]
[336956591,1725263453537,-500.0,0.00025753,2]
[336956592,1725263453547,-1697.58,0.00025753,2]
[336956593,1725263453556,-500.0,0.00025753,2]
[336956594,1725263453565,-500.0,0.00025753,2]
[336956595,1725263453576,-500.0,0.00025753,2]
[336956596,1725263453587,-521.14,0.00025753,2]
[336956597,1725263453601,-500.0,0.00025753,2]
[336956598,1725263453611,-500.0,0.00025753,2]
[336956599,1725263453621,-500.0,0.00025753,2]
[336956600,1725263453631,-784.92,0.00025753,2]
[336956601,1725263453642,-500.0,0.00025753,2]
[336956602,1725263453652,-611.62,0.00025753,2]
[336956603,1725263453662,-500.0,0.00025753,2]
[336956604,1725263453671,-500.0,0.00025753,2]
[336956605,1725263453680,-802.84,0.00025753,2]
[336956606,1725263453690,-500.0,0.00025753,2]
[336956607,1725263453700,-500.0,0.00025753,2]
[336956608,1725263453829,-500.0,0.00025753,2]
[336956609,1725263453839,-611.34490539,0.00025753,2]
[336956610,1725263453849,-500.0,0.00025753,2]
[336956611,1725263453859,-2904.12,0.00025753,2]
[336956612,1725263453868,-500.0,0.00025753,2]
[336956613,1725263453878,-500.0,0.00025753,2]
[336956614,1725263453887,-500.0,0.00025753,2]
[336956615,1725263453896,-500.0,0.00025753,2]
[336956616,1725263453906,-585.66,0.00025753,2]
[336956617,1725263453915,-500.0,0.00025753,2]
[336956618,1725263453924,-500.0,0.00025753,2]
[336956619,1725263453933,-1257.24,0.00025753,2]
[336956620,1725263453943,-2415.98,0.00025753,2]
[336956621,1725263453952,-644.12,0.00025753,2]
[336956622,1725263453962,-717.35,0.00025753,2]
[336956623,1725263453971,-500.0,0.00025753,2]
[336956624,1725263453981,-629.55,0.00025753,2]
[336956625,1725263453990,-884.49,0.00025753,2]
[336956626,1725263453999,-500.0,0.00025753,2]
[336956627,1725263454008,-931.11,0.00025753,2]
[336956628,1725263454017,-502.08,0.00025753,2]
[336956629,1725263454026,-482.23220311,0.0002579,2]
[336956630,1725263454035,-1876.3,0.000258,14]
[336956631,1725263454045,-1000.0,0.00025821,2]
[336956632,1725263454054,-1000.0,0.00025821,2]
[336956633,1725263454063,-1269.44,0.00025999,2]
[336956634,1725263454072,-500.0,0.00025999,2]
[336956635,1725263454081,-2000.0,0.00026,2]
[336956636,1725263454091,-2000.0,0.00026,2]
[336956637,1725263454101,-2000.0,0.00026,2]
[336956638,1725263454110,-2000.0,0.00026,2]
[336956639,1725263454119,-2000.0,0.00026,2]
[336956640,1725263454129,-815.0,0.00026,2]
[336956641,1725263454139,-2000.0,0.00026,2]
[336956642,1725263454148,-2000.0,0.00026,2]
[336956643,1725263454159,-2000.0,0.00026,2]
[336956644,1725263454169,-2000.0,0.00026,2]
[336956645,1725263454179,-2000.0,0.00026,2]
[336956646,1725263454188,-181.0,0.00026,2]
[336956647,1725263454197,-1269.44,0.00026026,2]
[336956648,1725263454206,-500.0,0.00026026,2]
[336956649,1725263454216,-500.0,0.00026027,2]
[336956650,1725263454226,-500.0,0.00026027,2]
[336956651,1725263454236,-500.0,0.00026027,2]
[336956652,1725263454247,-500.0,0.00026027,2]
[336956653,1725263454257,-500.0,0.00026027,2]
[336956654,1725263454266,-500.0,0.00026027,2]
[336956655,1725263454275,-500.0,0.00026027,2]
[336956656,1725263454284,-500.0,0.00026027,2]
[336956657,1725263454294,-500.0,0.00026027,2]
[336956658,1725263454303,-1083.56,0.00026027,2]
[336956659,1725263454313,-500.0,0.00026027,2]
[336956660,1725263454322,-500.0,0.00026027,2]
[336956661,1725263454332,-500.0,0.00026027,2]
[336956662,1725263454343,-500.0,0.00026027,2]
[336956663,1725263454353,-500.0,0.00026027,2]
[336956664,1725263454364,-500.0,0.00026027,2]
[336956665,1725263454375,-500.0,0.00026027,2]
[336956666,1725263454385,-500.0,0.00026027,2]
[336956667,1725263454395,-500.0,0.00026027,2]
[336956668,1725263454405,-500.0,0.00026027,2]
[336956669,1725263454415,-623.75,0.00026027,2]
[336956670,1725263454425,-513.98,0.00026027,2]
[336956671,1725263454434,-500.0,0.00026027,2]
[336956672,1725263454443,-500.0,0.00026027,2]
[336956673,1725263454453,-500.0,0.00026027,2]
[336956674,1725263454463,-500.0,0.00026027,2]
[336956675,1725263454473,-500.0,0.00026027,2]
[336956676,1725263454483,-500.0,0.00026027,2]
[336956677,1725263454493,-500.0,0.00026027,2]
[336956678,1725263454504,-543.66,0.00026027,2]
[336956679,1725263454515,-500.0,0.00026027,2]
[336956680,1725263454526,-500.0,0.00026027,2]
[336956681,1725263454535,-500.0,0.00026027,2]
[336956682,1725263454546,-947.03,0.00026027,2]
[336956683,1725263454557,-500.0,0.00026027,2]
[336956684,1725263454567,-787.87,0.00026027,2]
[336956685,1725263454578,-500.0,0.00026027,2]
[336956686,1725263454589,-500.0,0.00026027,2]
[336956687,1725263454600,-597.29,0.00026027,2]
[336956688,1725263454610,-500.0,0.00026027,2]
[336956689,1725263454620,-743.39,0.00026027,2]
[336956690,1725263454630,-589.44,0.00026027,2]
[336956691,1725263454643,-572.38,0.00026027,2]
[336956692,1725263454654,-500.0,0.00026027,2]
[336956693,1725263454664,-3733.93,0.00026027,2]
[336956694,1725263454673,-500.0,0.00026027,2]
[336956695,1725263454682,-772.45,0.00026027,2]
[336956696,1725263454691,-500.0,0.00026027,2]
[336956697,1725263454700,-500.0,0.00026027,2]
[336956698,1725263454710,-500.0,0.00026027,2]
[336956699,1725263454721,-724.25,0.00026027,2]
[336956700,1725263454730,-971.88,0.00026027,2]
[336956701,1725263454741,-500.0,0.00026027,2]
[336956702,1725263454752,-1697.58,0.00026027,2]
[336956703,1725263454764,-500.0,0.00026027,2]
[336956704,1725263454773,-500.0,0.00026027,2]
[336956705,1725263454782,-500.0,0.00026027,2]
[336956706,1725263454792,-521.14,0.00026027,2]
[336956707,1725263454801,-500.0,0.00026027,2]
[336956708,1725263454811,-500.0,0.00026027,2]
[336956709,1725263454820,-500.0,0.00026027,2]
[336956710,1725263454829,-784.92,0.00026027,2]
[336956711,1725263454838,-500.0,0.00026027,2]
[336956712,1725263454848,-611.62,0.00026027,2]
[336956713,1725263454857,-500.0,0.00026027,2]
[336956714,1725263454867,-500.0,0.00026027,2]
[336956715,1725263454877,-802.84,0.00026027,2]
[336956716,1725263454887,-500.0,0.00026027,2]
[336956717,1725263454896,-500.0,0.00026027,2]
[336956718,1725263454906,-500.0,0.00026027,2]
[336956719,1725263454917,-500.0,0.00026027,2]
[336956720,1725263454929,-2904.12,0.00026027,2]
[336956721,1725263454941,-500.0,0.00026027,2]
[336956722,1725263454953,-500.0,0.00026027,2]
[336956723,1725263454964,-500.0,0.00026027,2]
[336956724,1725263454973,-500.0,0.00026027,2]
[336956725,1725263454983,-585.66,0.00026027,2]
[336956726,1725263454992,-500.0,0.00026027,2]
[336956727,1725263455002,-500.0,0.00026027,2]
[336956728,1725263455012,-1257.24,0.00026027,2]
[336956729,1725263455021,-2415.98,0.00026027,2]
[336956730,1725263455031,-644.12,0.00026027,2]
[336956731,1725263455040,-717.35,0.00026027,2]
[336956732,1725263455050,-500.0,0.00026027,2]
[336956733,1725263455059,-629.55,0.00026027,2]
[336956734,1725263455069,-884.49,0.00026027,2]
[336956735,1725263455079,-537.41654845,0.00026027,2]
[336956736,1725263455088,-502.08,0.00026027,2]
[336956737,1725263455099,-931.11,0.00026027,2]
[336956738,1725263455108,-150.0,0.00026093,2]
[336956739,1725263455118,-523.0,0.00026093,2]
[336956740,1725263455128,-150.111,0.00026093,2]
[336956741,1725263455137,-1269.44,0.000263,2]
[336956742,1725263455147,-500.0,0.000263,2]
[336956743,1725263455157,-500.0,0.00026301,2]
[336956744,1725263455167,-285.54,0.00026301,2]
[336956745,1725263455176,-500.0,0.00026301,2]
[336956746,1725263455185,-500.0,0.00026301,2]
[336956747,1725263455195,-500.0,0.00026301,2]
[336956748,1725263455205,-500.0,0.00026301,2]
[336956749,1725263455215,-500.0,0.00026301,2]
[336956750,1725263455225,-500.0,0.00026301,2]
[336956751,1725263455235,-500.0,0.00026301,2]
[336956752,1725263455244,-1083.56,0.00026301,2]
[336956753,1725263455255,-500.0,0.00026301,2]
[336956754,1725263455264,-500.0,0.00026301,2]
[336956755,1725263455274,-342.32159427,0.00026301,2]
[336956756,1725263455284,-500.0,0.00026301,2]
[336956757,1725263455293,-500.0,0.00026301,2]
[336956758,1725263455303,-500.0,0.00026301,2]
[336956759,1725263455312,-500.0,0.00026301,2]
[336956760,1725263455321,-500.0,0.00026301,2]
[336956761,1725263455332,-622.57151725,0.00026301,2]
[336956762,1725263455341,-500.0,0.00026301,2]
[336956763,1725263455355,-623.75,0.00026301,2]
[336956764,1725263455365,-408.24158266,0.00026301,2]
[336956765,1725263455374,-500.0,0.00026301,2]
[336956766,1725263455387,-500.0,0.00026301,2]
[336956767,1725263455422,-500.0,0.00026301,2]
[336956768,1725263455433,-500.0,0.00026301,2]
[336956769,1725263455443,-500.0,0.00026301,2]
[336956770,1725263455455,-500.0,0.00026301,2]
[336956771,1725263455465,-500.0,0.00026301,2]
[336956772,1725263455475,-500.0,0.00026301,2]
[336956773,1725263455485,-427.95544315,0.00026301,2]
[336956774,1725263455495,-947.03,0.00026301,2]
[336956775,1725263455504,-500.0,0.00026301,2]
[336956776,1725263455514,-787.87,0.00026301,2]
[336956777,1725263455524,-500.0,0.00026301,2]
[336956778,1725263455536,-500.0,0.00026301,2]
[336956779,1725263455546,-597.29,0.00026301,2]
[336956780,1725263455556,-500.0,0.00026301,2]
[336956781,1725263455565,-743.39,0.00026301,2]
[336956782,1725263455574,-589.44,0.00026301,2]
[336956783,1725263455586,-572.38,0.00026301,2]
[336956784,1725263455599,-500.0,0.00026301,2]
[336956785,1725263455610,-3733.93,0.00026301,2]
[336956786,1725263455620,-500.0,0.00026301,2]
[336956787,1725263455630,-772.45,0.00026301,2]
[336956788,1725263455641,-500.0,0.00026301,2]
[336956789,1725263455651,-500.0,0.00026301,2]
[336956790,1725263455662,-500.0,0.00026301,2]
[336956791,1725263455671,-724.25,0.00026301,2]
[336956792,1725263455681,-971.88,0.00026301,2]
[336956793,1725263455690,-500.0,0.00026301,2]
[336956794,1725263455700,-1697.58,0.00026301,2]
[336956795,1725263455710,-500.0,0.00026301,2]
[336956796,1725263455720,-500.0,0.00026301,2]
[336956797,1725263455729,-500.0,0.00026301,2]
[336956798,1725263455738,-521.14,0.00026301,2]
[336956799,1725263455748,-500.0,0.00026301,2]
[336956800,1725263455758,-500.0,0.00026301,2]
[336956801,1725263455767,-500.0,0.00026301,2]
[336956802,1725263455776,-784.92,0.00026301,2]
[336956803,1725263455786,-500.0,0.00026301,2]
[336956804,1725263455795,-611.62,0.00026301,2]
[336956805,1725263455805,-500.0,0.00026301,2]
[336956806,1725263455815,-500.0,0.00026301,2]
[336956807,1725263455824,-802.84,0.00026301,2]
[336956808,1725263455833,-256.61297914,0.00026301,2]
[336956809,1725263455843,-500.0,0.00026301,2]
[336956810,1725263455854,-500.0,0.00026301,2]
[336956811,1725263455864,-500.0,0.00026301,2]
[336956812,1725263455874,-2904.12,0.00026301,2]
[336956813,1725263455883,-500.0,0.00026301,2]
[336956814,1725263455893,-500.0,0.00026301,2]
[336956815,1725263455903,-500.0,0.00026301,2]
[336956816,1725263455912,-500.0,0.00026301,2]
[336956817,1725263455922,-585.66,0.00026301,2]
[336956818,1725263455932,-500.0,0.00026301,2]
[336956819,1725263455941,-500.0,0.00026301,2]
[336956820,1725263455951,-1257.24,0.00026301,2]
[336956821,1725263455960,-2415.98,0.00026301,2]
[336956822,1725263455969,-644.12,0.00026301,2]
[336956823,1725263455978,-717.35,0.00026301,2]
[336956824,1725263455987,-500.0,0.00026301,2]
[336956825,1725263455996,-629.55,0.00026301,2]
[336956826,1725263456005,-884.49,0.00026301,2]
[336956827,1725263456014,-502.08,0.00026301,2]
[336956828,1725263456024,-931.11,0.00026301,2]
[336956829,1725263456033,-482.23220311,0.00026407,2]
[336956830,1725263456042,-212.1,0.00026475,7]
[336956831,1725263456051,-169.58096664,0.00026475,7]
[336956832,1725263456061,-169.58096664,0.00026475,7]
[336956833,1725263456070,-213.63,0.00026475,7]
[336956834,1725263456079,-170.80410684,0.00026475,7]
[336956835,1725263456088,-170.80410684,0.00026475,7]
[336956836,1725263456097,-1269.44,0.00026573,2]
[336956837,1725263456107,-1269.44,0.00026574,2]
[336956838,1725263456119,-1269.44,0.00026574,2]
[336956839,1725263456128,-1269.44,0.00026574,2]
[336956840,1725263456137,-1269.44,0.00026574,2]
[336956841,1725263456147,-1269.44593964,0.00026574,2]
[336956842,1725263456156,-500.0,0.00026575,2]
[336956843,1725263456166,-262.97699443,0.00026575,2]
[336956844,1725263456175,-500.0,0.00026575,2]
[336956845,1725263456184,-500.0,0.00026575,2]
[336956846,1725263456193,-500.0,0.00026575,2]
[336956847,1725263456205,-500.0,0.00026575,2]
[336956848,1725263456215,-500.0,0.00026575,2]
[336956849,1725263456225,-263.48450598,0.00026575,2]
[336956850,1725263456234,-1083.56,0.00026575,2]
[336956851,1725263456246,-622.3593086,0.00026575,2]
[336956852,1725263456259,-500.0,0.00026575,2]
[336956853,1725263456269,-500.0,0.00026575,2]
[336956854,1725263456278,-500.0,0.00026575,2]
[336956855,1725263456287,-500.0,0.00026575,2]
[336956856,1725263456297,-500.0,0.00026575,2]
[336956857,1725263456306,-500.0,0.00026575,2]
[336956858,1725263456315,-500.0,0.00026575,2]
[336956859,1725263456324,-623.75,0.00026575,2]
[336956860,1725263456335,-500.0,0.00026575,2]
[336956861,1725263456347,-500.0,0.00026575,2]
[336956862,1725263456356,-500.0,0.00026575,2]
[336956863,1725263456365,-500.0,0.00026575,2]
[336956864,1725263456376,-500.0,0.00026575,2]
[336956865,1725263456387,-500.0,0.00026575,2]
[336956866,1725263456396,-500.0,0.00026575,2]
[336956867,1725263456405,-500.0,0.00026575,2]
[336956868,1725263456414,-947.03,0.00026575,2]
[336956869,1725263456424,-500.0,0.00026575,2]
[336956870,1725263456433,-787.87,0.00026575,2]
[336956871,1725263456443,-500.0,0.00026575,2]
[336956872,1725263456454,-387.41604029,0.00026575,2]
[336956873,1725263456466,-597.29,0.00026575,2]
[336956874,1725263456475,-500.0,0.00026575,2]
[336956875,1725263456485,-743.39,0.00026575,2]
[336956876,1725263456494,-589.44,0.00026575,2]
[336956877,1725263456503,-500.0,0.00026575,2]
[336956878,1725263456512,-572.38,0.00026575,2]
[336956879,1725263456522,-3733.93,0.00026575,2]
[336956880,1725263456532,-500.0,0.00026575,2]
[336956881,1725263456542,-500.0,0.00026575,2]
[336956882,1725263456551,-772.45,0.00026575,2]
[336956883,1725263456560,-500.0,0.00026575,2]
[336956884,1725263456570,-500.0,0.00026575,2]
[336956885,1725263456579,-724.25,0.00026575,2]
[336956886,1725263456589,-971.88,0.00026575,2]
[336956887,1725263456598,-500.0,0.00026575,2]
[336956888,1725263456607,-1697.58,0.00026575,2]
[336956889,1725263456617,-500.0,0.00026575,2]
[336956890,1725263456627,-500.0,0.00026575,2]
[336956891,1725263456637,-500.0,0.00026575,2]
[336956892,1725263456649,-521.14,0.00026575,2]
[336956893,1725263456661,-500.0,0.00026575,2]
[336956894,1725263456670,-500.0,0.00026575,2]
[336956895,1725263456679,-500.0,0.00026575,2]
[336956896,1725263456688,-784.92,0.00026575,2]
[336956897,1725263456698,-500.0,0.00026575,2]
[336956898,1725263456708,-611.62,0.00026575,2]
[336956899,1725263456717,-500.0,0.00026575,2]
[336956900,1725263456727,-500.0,0.00026575,2]
[336956901,1725263456736,-802.84,0.00026575,2]
[336956902,1725263456843,-500.0,0.00026575,2]
[336956903,1725263456869,-500.0,0.00026575,2]
[336956904,1725263456878,-500.0,0.00026575,2]
[336956905,1725263456887,-2904.12,0.00026575,2]
[336956906,1725263456896,-500.0,0.00026575,2]
[336956907,1725263456905,-500.0,0.00026575,2]
[336956908,1725263456915,-500.0,0.00026575,2]
[336956909,1725263456924,-500.0,0.00026575,2]
[336956910,1725263456934,-585.66,0.00026575,2]
[336956911,1725263456943,-500.0,0.00026575,2]
[336956912,1725263456953,-500.0,0.00026575,2]
[336956913,1725263456962,-1257.24,0.00026575,2]
[336956914,1725263456972,-2415.98,0.00026575,2]
[336956915,1725263456981,-644.12,0.00026575,2]
[336956916,1725263456991,-717.35,0.00026575,2]
[336956917,1725263457000,-500.0,0.00026575,2]
[336956918,1725263457012,-629.55,0.00026575,2]
[336956919,1725263457021,-884.49,0.00026575,2]
[336956920,1725263457031,-502.08,0.00026575,2]
[336956921,1725263457040,-931.11,0.00026575,2]
[336956922,1725263457050,-5635.82,0.000266,14]
[336956923,1725263457060,-3200.0,0.00026625,2]
[336956924,1725263457070,-1500.0,0.00026719,2]
[336956925,1725263457079,-1500.0,0.00026719,2]
[336956926,1725263457088,-169.58096664,0.00026729,7]
[336956927,1725263457097,-170.80410684,0.00026729,7]
[336956928,1725263457106,-500.0,0.00026849,2]
[336956929,1725263457116,-500.0,0.00026849,2]
[336956930,1725263457125,-554.41006547,0.00026849,2]
[336956931,1725263457136,-500.0,0.00026849,2]
[336956932,1725263457145,-333.70402484,0.00026849,2]
[336956933,1725263457155,-500.0,0.00026849,2]
[336956934,1725263457164,-1083.56,0.00026849,2]
[336956935,1725263457174,-500.0,0.00026849,2]
[336956936,1725263457183,-500.0,0.00026849,2]
[336956937,1725263457192,-500.0,0.00026849,2]
[336956938,1725263457201,-500.0,0.00026849,2]
[336956939,1725263457210,-500.0,0.00026849,2]
[336956940,1725263457222,-500.0,0.00026849,2]
[336956941,1725263457232,-500.0,0.00026849,2]
[336956942,1725263457241,-623.75,0.00026849,2]
[336956943,1725263457251,-500.0,0.00026849,2]
[336956944,1725263457260,-511.44130157,0.00026849,2]
[336956945,1725263457270,-500.0,0.00026849,2]
[336956946,1725263457279,-500.0,0.00026849,2]
[336956947,1725263457288,-500.0,0.00026849,2]
[336956948,1725263457297,-500.0,0.00026849,2]
[336956949,1725263457306,-500.0,0.00026849,2]
[336956950,1725263457315,-500.0,0.00026849,2]
[336956951,1725263457324,-947.03,0.00026849,2]
[336956952,1725263457334,-787.87,0.00026849,2]
[336956953,1725263457345,-500.0,0.00026849,2]
[336956954,1725263457354,-500.0,0.00026849,2]
[336956955,1725263457395,-597.29,0.00026849,2]
[336956956,1725263457406,-500.0,0.00026849,2]
[336956957,1725263457417,-743.39,0.00026849,2]
[336956958,1725263457427,-589.44,0.00026849,2]
[336956959,1725263457437,-500.0,0.00026849,2]
[336956960,1725263457447,-572.38,0.00026849,2]
[336956961,1725263457459,-3733.93,0.00026849,2]
[336956962,1725263457469,-500.0,0.00026849,2]
[336956963,1725263457478,-500.0,0.00026849,2]
[336956964,1725263457488,-772.45,0.00026849,2]
[336956965,1725263457498,-500.0,0.00026849,2]
[336956966,1725263457509,-500.0,0.00026849,2]
[336956967,1725263457520,-724.25,0.00026849,2]
[336956968,1725263457531,-971.88,0.00026849,2]
[336956969,1725263457540,-500.0,0.00026849,2]
[336956970,1725263457550,-1697.58,0.00026849,2]
[336956971,1725263457559,-500.0,0.00026849,2]
[336956972,1725263457568,-500.0,0.00026849,2]
[336956973,1725263457577,-500.0,0.00026849,2]
[336956974,1725263457587,-521.14,0.00026849,2]
[336956975,1725263457598,-500.0,0.00026849,2]
[336956976,1725263457607,-500.0,0.00026849,2]
[336956977,1725263457617,-500.0,0.00026849,2]
[336956978,1725263457627,-784.92,0.00026849,2]
[336956979,1725263457636,-611.62,0.00026849,2]
[336956980,1725263457647,-500.0,0.00026849,2]
[336956981,1725263457658,-500.0,0.00026849,2]
[336956982,1725263457668,-500.0,0.00026849,2]
[336956983,1725263457677,-802.84,0.00026849,2]
[336956984,1725263457686,-500.0,0.00026849,2]
[336956985,1725263457695,-500.0,0.00026849,2]
[336956986,1725263457705,-248.72044168,0.00026849,2]
[336956987,1725263457716,-2904.12,0.00026849,2]
[336956988,1725263457727,-500.0,0.00026849,2]
[336956989,1725263457738,-500.0,0.00026849,2]
[336956990,1725263457750,-500.0,0.00026849,2]
[336956991,1725263457759,-500.0,0.00026849,2]
[336956992,1725263457768,-585.66,0.00026849,2]
[336956993,1725263457778,-500.0,0.00026849,2]
[336956994,1725263457790,-500.0,0.00026849,2]
[336956995,1725263457800,-1257.24,0.00026849,2]
[336956996,1725263457808,-2415.98,0.00026849,2]
[336956997,1725263457818,-644.12,0.00026849,2]
[336956998,1725263457828,-717.35,0.00026849,2]
[336956999,1725263457838,-500.0,0.00026849,2]
[336957000,1725263457848,-629.55,0.00026849,2]
[336957001,1725263457858,-884.49,0.00026849,2]
[336957002,1725263457867,-502.08,0.00026849,2]
[336957003,1725263457876,-931.11,0.00026849,2]
[336957004,1725263457885,-513.0,0.00027,2]
[336957005,1725263457894,-482.23220311,0.00027023,2]
[336957006,1725263457903,-420.0,0.00027121,2]
[336957007,1725263457913,-500.0,0.00027123,2]
[336957008,1725263457922,-500.0,0.00027123,2]
[336957009,1725263457932,-500.0,0.00027123,2]
[336957010,1725263457942,-500.0,0.00027123,2]
[336957011,1725263457951,-1083.56,0.00027123,2]
[336957012,1725263457960,-500.0,0.00027123,2]
[336957013,1725263457969,-500.0,0.00027123,2]
[336957014,1725263457979,-500.0,0.00027123,2]
[336957015,1725263457988,-500.0,0.00027123,2]
[336957016,1725263457998,-412.86400161,0.00027123,2]
[336957017,1725263458008,-500.0,0.00027123,2]
[336957018,1725263458018,-500.0,0.00027123,2]
[336957019,1725263458028,-623.75,0.00027123,2]
[336957020,1725263458037,-466.23206853,0.00027123,2]
[336957021,1725263458048,-500.0,0.00027123,2]
[336957022,1725263458057,-500.0,0.00027123,2]
[336957023,1725263458067,-500.0,0.00027123,2]
[336957024,1725263458077,-500.0,0.00027123,2]
[336957025,1725263458086,-500.0,0.00027123,2]
[336957026,1725263458098,-500.0,0.00027123,2]
[336957027,1725263458107,-947.03,0.00027123,2]
[336957028,1725263458117,-787.87,0.00027123,2]
[336957029,1725263458127,-500.0,0.00027123,2]
[336957030,1725263458140,-500.0,0.00027123,2]
[336957031,1725263458149,-597.29,0.00027123,2]
[336957032,1725263458159,-500.0,0.00027123,2]
[336957033,1725263458169,-743.39,0.00027123,2]
[336957034,1725263458178,-589.44,0.00027123,2]
[336957035,1725263458188,-214.2844278,0.00027123,2]
[336957036,1725263458199,-572.38,0.00027123,2]
[336957037,1725263458209,-3733.93,0.00027123,2]
[336957038,1725263458218,-500.0,0.00027123,2]
[336957039,1725263458230,-500.0,0.00027123,2]
[336957040,1725263458242,-772.45,0.00027123,2]
[336957041,1725263458252,-500.0,0.00027123,2]
[336957042,1725263458261,-500.0,0.00027123,2]
[336957043,1725263458271,-724.25,0.00027123,2]
[336957044,1725263458280,-971.88,0.00027123,2]
[336957045,1725263458290,-500.0,0.00027123,2]
[336957046,1725263458300,-1697.58,0.00027123,2]
[336957047,1725263458310,-500.0,0.00027123,2]
[336957048,1725263458320,-500.0,0.00027123,2]
[336957049,1725263458328,-500.0,0.00027123,2]
[336957050,1725263458339,-521.14,0.00027123,2]
[336957051,1725263458349,-500.0,0.00027123,2]
[336957052,1725263458359,-500.0,0.00027123,2]
[336957053,1725263458371,-500.0,0.00027123,2]
[336957054,1725263458381,-784.92,0.00027123,2]
[336957055,1725263458390,-611.62,0.00027123,2]
[336957056,1725263458400,-500.0,0.00027123,2]
[336957057,1725263458410,-186.51141241,0.00027123,2]
[336957058,1725263458421,-500.0,0.00027123,2]
[336957059,1725263458430,-802.84,0.00027123,2]
[336957060,1725263458441,-500.0,0.00027123,2]
[336957061,1725263458451,-326.07797051,0.00027123,2]
[336957062,1725263458462,-2904.12,0.00027123,2]
[336957063,1725263458472,-500.0,0.00027123,2]
[336957064,1725263458482,-500.0,0.00027123,2]
[336957065,1725263458492,-500.0,0.00027123,2]
[336957066,1725263458501,-500.0,0.00027123,2]
[336957067,1725263458510,-585.66,0.00027123,2]
[336957068,1725263458519,-500.0,0.00027123,2]
[336957069,1725263458529,-500.0,0.00027123,2]
[336957070,1725263458538,-1257.24,0.00027123,2]
[336957071,1725263458549,-2415.98,0.00027123,2]
[336957072,1725263458558,-644.12,0.00027123,2]